[Event "13th KIIT Festival-A 2022"]
[Site "Bhubaneswar"]
[Date "2022.05.26"]
[Round "7.17"]
[White "Nayak Rajesh"]
[Black "Uddipan Roy"]
[Result "1/2-1/2"]
[ECO "B86"]
[WhiteElo "2179"]
[BlackElo "1453"]
[Annotator "TA"]
[PlyCount "232"]
[EventDate "2022.05.15"]
[EventType "swiss"]
[EventCountry "IND"]
[SourceTitle "playchess.com"]
[Source "ChessBase"]
[SourceQuality "1"]
[TimeControl "5400+30"]

{[%evp 18,232,0,-8,50,-54,-52,-133,-106,-144,-100,-117,-98,-108,-83,-96,15,-24,0,0,0,0,0,0,0,0,0,0,0,0,0,-15,-7,-25,27,0,0,0,0,-40,0,0,0,0,0,0,0,0,0,0,0,0,0,0,0,0,87,65,89,83,93,77,448,410,403,392,416,0,0,0,0,0,0,0,38,45,75,0,0,0,0,0,0,0,0,0,0,0,0,0,0,0,0,0,0,0,0,0,0,0,0,0,0,0,0,0,0,0,0,0,0,0,0,0,0,0,0,0,0,0,0,0,0,0,0,0,0,0,0,0,0,0,0,0,0,0,0,0,0,0,0,0,0,0,0,0,0,0,0,0,0,0,0,0,0,0,0,0,0,0,0,0,0,0,0,0,0,0,0,0,0,0,0,0,0,0,0,0,0,0,0,0,0,0,0,0,0,0,0,0,0,0,0,0,0,0,0,0,0,0,0,0,0,0,0,0,0,0,0,0,0,0,0,0,0,0,0]} 1. e4 {[%emt 0:03:02]} c5 {[%emt 0:00:01]} 2. Nf3 {[%emt 0:00:18]} d6 {[%emt 0:00:00]} 3. d4 {[%emt 0:00:23]} cxd4 {[%emt 0:00:02]} 4. Nxd4 {[%emt 0:00:09]} Nf6 {[%emt 0:00:01]} 5. Nc3 {[%emt 0:00:09]} a6 {[%emt 0:00:01]} 6. Bc4 {[%emt 0:04:55]} e6 {[%emt 0:00:05]} 7. Bb3 {[%emt 0:00:14]} Nbd7 {[%emt 0:00:14][%cal Bb8d7,Bd7c5,Bc5b3][%mdl 32]} 8. O-O {[%emt 0:05:52]} Nc5 {[%emt 0:00:02]} 9. Re1 {[%emt 0:06:34]} Be7 {[%emt 0:00:05]} 10. f4 {[%emt 0:06:10]} Qc7 {[%emt 0:00:07] B86: Sicilian Scheveningen/Najdorf: 6 Bc4, without early ...b5.} (10... O-O $11) 11. Qf3 {[%emt 0:02:40]} (11. e5 dxe5 12. fxe5 (12. Rxe5 b5)) (11. e5 $14 dxe5 12. fxe5 (12. Rxe5 b5 $17)) 11... b5 $15 {[%emt 0:09:32]} 12. e5 {[%emt 0:04:52]} (12. Nd1 $15) 12... Bb7 $17 {[%emt 0:00:32] [#] Black is clearly better.} 13. Qh3 $146 {[%emt 0:15:33]} ({Predecessor:} 13. Qg3 Nh5 14. Qg4 g6 15. f5 dxe5 16. fxe6 f6 17. Nf5 Nxb3 18. axb3 Qb6+ 19. Be3 Qxe6 20. Qxh5 Qxf5 21. Qxf5 gxf5 {0-1 (34) Kornthaler,R (2025)-Knechtel,R (2125) Austria 1997}) 13... Nxb3 {[%emt 0:04:48]} 14. Nxb3 {[%emt 0:11:22]} Nd5 {[%emt 0:00:34]} 15. Nxd5 {[%emt 0:00:34]} Bxd5 {[%emt 0:00:06]} 16. c3 {[%emt 0:00:29]} f5 {[%emt 0:39:41]} (16... O-O $17 17. Qg3 f6) 17. exd6 {[%emt 0:03:41]} (17. exf6 {keeps more tension.} Bxf6 18. Qh5+ Kf8 19. Be3) 17... Qxd6 {[%emt 0:00:26]} 18. Be3 {[%emt 0:01:06]} Rc8 {[%emt 0:10:56]} 19. Qh5+ {[%emt 0:03:54]} g6 {[%emt 0:00:41]} 20. Qh6 {[%emt 0:00:11]} Bf8 {[%emt 0:00:34] Against Qg7. A strong pair of Bishops.} 21. Qh4 {[%emt 0:00:15]} Be7 {[%emt 0:07:14]} 22. Qh6 {[%emt 0:01:45] Black must now prevent Qg7.} Bf8 {[%emt 0:00:06] Against Qg7} 23. Qh4 {[%emt 0:00:08]} Be7 {[%emt 0:00:04][%cal Bf8e7,Be7f6,Bf6e5][%mdl 32]} 24. Qf2 {[%emt 0:00:26]} O-O {[%emt 0:00:10]} 25. Bd4 {[%emt 0:00:14]} Qd8 {[%emt 0:02:44]} (25... b4 $142) 26. Bb6 {[%emt 0:01:31]} Qe8 {[%emt 0:03:11]} 27. Nd4 {[%emt 0:09:08]} Bf6 {[%emt 0:01:18]} 28. Rad1 {[%emt 0:01:46][%cal Od4f5]} Qf7 {[%emt 0:05:33]} 29. a3 {[%emt 0:01:51]} Rfe8 {[%emt 0:01:50]} 30. Nf3 {[%emt 0:06:44]} Bxf3 {[%emt 0:00:45]} 31. Qxf3 {[%emt 0:00:07]} e5 {[%emt 0:00:10]} 32. fxe5 {[%emt 0:00:07]} Bxe5 {[%emt 0:00:08]} 33. g3 {[%emt 0:01:53]} Bf6 {[%emt 0:02:54]} 34. Rxe8+ {[%emt 0:02:55]} Rxe8 {[%emt 0:00:10]} 35. Bf2 {[%emt 0:01:20]} Re4 {[%emt 0:02:29]} 36. Rd6 {[%emt 0:00:38]} a5 {[%emt 0:01:54]} (36... Be7 $11 {remains equal.} 37. Rxa6 Qb3) 37. Qd3 $16 {[%emt 0:00:13]} b4 {[%emt 0:04:14] [#]} 38. cxb4 $1 {[%emt 0:00:11]} axb4 {[%emt 0:00:05] [#]} 39. a4 $1 {[%emt 0:01:28]} Bxb2 $2 {[%emt 0:02:36][%mdl 8192]} (39... Re5 $16 {is tougher.}) 40. a5 $18 {[%emt 0:01:34]} Bf6 {[%emt 0:02:09] Prevents Rd8+.} 41. a6 {[%emt 0:00:13]} Re7 {[%emt 0:01:02]} 42. a7 $2 {[%emt 0:03:20]} (42. Kg2 $18) 42... Rxa7 $11 {[%emt 0:00:09]} 43. Bxa7 {[%emt 0:00:07]} Qxa7+ {[%emt 0:00:04][%mdl 4096] Endgame KQR-KQB} 44. Kg2 {[%emt 0:00:03]} Qf7 {[%emt 0:00:56]} 45. Rb6 {[%emt 0:00:35]} h6 {[%emt 0:00:58]} 46. Rxb4 {[%emt 0:00:16]} Bg7 {[%emt 0:00:32]} 47. h4 {[%emt 0:00:21]} (47. Rb6 $16) 47... Qa2+ {[%emt 0:00:15] The position is equal.} 48. Kh3 {[%emt 0:00:12][%cal Oh4h5] Threatens to win with h5!} Qa8 {[%emt 0:00:43][%cal Ra8h1]} 49. Qb1 {[%emt 0:00:27] Prevents Qh1+.} Qf3 {[%emt 0:00:16]} 50. Rf4 {[%emt 0:00:22]} (50. Qb3+ $6 Qxb3 51. Rxb3 h5 $16) 50... Qe2 {[%emt 0:00:11]} 51. Qb3+ {[%emt 0:00:17]} (51. Qb7 $6 h5 52. Qg2 Qd1 $16) 51... Kh7 {[%emt 0:00:08]} 52. Qd5 {[%emt 0:00:39]} Be5 {[%emt 0:00:47]} 53. Rf3 {[%emt 0:00:39][%cal Oh4h5] And now h5! would win.} Qe1 {[%emt 0:00:44][%cal Re1h1]} 54. Kg2 {[%emt 0:00:22][%cal Oh4h5] Prevents Qh1+. h5! is the strong threat.} Qe2+ {[%emt 0:00:08]} 55. Rf2 {[%emt 0:00:14]} Qe3 {[%emt 0:00:13]} 56. Qf7+ {[%emt 0:00:51]} Kh8 $1 {[%emt 0:00:30]} 57. Qe8+ {[%emt 0:02:17]} Kh7 {[%emt 0:00:41]} 58. Qd7+ {[%emt 0:00:06]} Kh8 {[%emt 0:00:17]} 59. Qc8+ {[%emt 0:00:05]} Kh7 {[%emt 0:00:09]} 60. Qb7+ {[%emt 0:00:08]} Kh8 {[%emt 0:00:14]} 61. Rf3 {[%emt 0:00:25] Dancing on a razor blade.} ({But not} 61. Qf3 $6 Qxf3+ 62. Rxf3 (62. Kxf3 Kg7 $16) 62... Kg7 $16) 61... Qe2+ {[%emt 0:00:34]} 62. Kh3 {[%emt 0:00:12]} Qe1 {[%emt 0:00:11][%cal Re1h1]} ({Don't play} 62... Qc4 63. h5 Qg4+ 64. Kg2 Qxh5 65. Qd5 $16 (65. Re3 f4 $16)) 63. Rb3 {[%emt 0:02:37]} Qf1+ {[%emt 0:00:17]} 64. Qg2 {[%emt 0:00:07]} Qxg2+ {[%emt 0:00:35]} 65. Kxg2 {[%emt 0:00:04][%cal Oh4h5] KR-KB} h5 {[%emt 0:00:08]} 66. Rb7 {[%emt 0:00:14]} Bg7 {[%emt 0:02:40]} 67. Kf3 {[%emt 0:00:09] aiming for Kf4.} Kh7 {[%emt 0:00:10]} 68. Ke3 {[%emt 0:01:02]} Kh6 {[%emt 0:00:11]} 69. Re7 {[%emt 0:00:08]} Bf8 {[%emt 0:00:18]} 70. Rd7 {[%emt 0:00:16]} g5 {[%emt 0:00:41]} 71. Kf3 {[%emt 0:01:05]} Kg6 {[%emt 0:01:54]} 72. Rd8 {[%emt 0:01:21]} Be7 {[%emt 0:00:18][%csl LRd8,LRh4]} 73. Rd7 {[%emt 0:00:21]} Bf6 {[%emt 0:00:53]} 74. Rd6 {[%emt 0:00:20]} gxh4 {[%emt 0:00:26]} 75. gxh4 {[%emt 0:00:04]} Kf7 {[%emt 0:00:04]} 76. Kf4 {[%emt 0:00:35]} Bxh4 {[%emt 0:00:33]} 77. Kxf5 {[%emt 0:00:06]} Ke7 {[%emt 0:00:05]} 78. Rh6 {[%emt 0:00:23]} Bf2 {[%emt 0:00:07]} 79. Rxh5 {[%emt 0:00:08]} Kd6 {[%emt 0:00:01]} 80. Ke4 {[%emt 0:00:09]} Be1 {[%emt 0:00:23]} 81. Rd5+ {[%emt 0:00:25]} Ke6 {[%emt 0:00:14]} 82. Rd1 {[%emt 0:00:05]} Bf2 {[%emt 0:00:11]} 83. Rf1 {[%emt 0:00:07]} Bc5 {[%emt 0:00:37]} 84. Ra1 {[%emt 0:00:22]} Kd7 {[%emt 0:00:55]} 85. Kd5 {[%emt 0:00:10]} Bb6 {[%emt 0:00:12]} 86. Rh1 {[%emt 0:00:08]} Be3 {[%emt 0:00:28]} 87. Rh7+ {[%emt 0:00:06]} Kc8 {[%emt 0:00:04]} 88. Kc6 {[%emt 0:00:39][%cal Rh7h8]} Kb8 {[%emt 0:00:03]} 89. Rh8+ {[%emt 0:02:04]} Ka7 {[%emt 0:00:06]} 90. Rh4 {[%emt 0:00:33]} Ka8 {[%emt 0:01:12]} 91. Kc7 {[%emt 0:00:46]} Bf2 {[%emt 0:00:57]} 92. Rg4 {[%emt 0:00:24]} Be3 {[%emt 0:00:35]} 93. Ra4+ {[%emt 0:00:17]} Ba7 {[%emt 0:00:05]} 94. Rb4 {[%emt 0:00:13]} Bg1 {[%emt 0:00:22]} 95. Rh4 {[%emt 0:00:13]} Bf2 {[%emt 0:00:08]} 96. Rh3 {[%emt 0:00:07]} Bd4 {[%emt 0:00:31]} 97. Ra3+ {[%emt 0:01:14]} Ba7 {[%emt 0:00:01]} 98. Rb3 {[%emt 0:00:04]} Bg1 {[%emt 0:00:30]} 99. Rb8+ {[%emt 0:00:05]} Ka7 {[%emt 0:00:03]} 100. Rb1 {[%emt 0:00:08]} Bh2+ {[%emt 0:00:04]} 101. Kc6 {[%emt 0:00:04]} Bg3 {[%emt 0:00:58]} 102. Rb3 {[%emt 0:01:43]} Bh2 {[%emt 0:00:18]} 103. Rf3 {[%emt 0:00:06]} Be5 {[%emt 0:00:11]} 104. Rf7+ {[%emt 0:00:19]} Ka8 {[%emt 0:00:09]} 105. Rb7 {[%emt 0:01:22]} Bb8 {[%emt 0:00:29]} 106. Kb6 {[%emt 0:00:09]} Bh2 {[%emt 0:00:14]} 107. Ra7+ {[%emt 0:00:05]} Kb8 {[%emt 0:00:02]} 108. Rg7 {[%emt 0:00:24][%cal Rg7g8]} Ka8 {[%emt 0:00:09]} 109. Ra7+ {[%emt 0:02:56]} Kb8 {[%emt 0:00:02]} 110. Ka6 {[%emt 0:00:16]} Bc7 {[%emt 0:00:42]} 111. Rb7+ {[%emt 0:00:08]} Kc8 {[%emt 0:00:03]} 112. Rb5 {[%emt 0:00:21]} Bd6 {[%emt 0:00:07]} 113. Kb6 {[%emt 0:00:05] Strongly threatening Kc6.} Kd7 {[%emt 0:00:07]} 114. Rd5 {[%emt 0:00:08]} Ke6 {[%emt 0:00:13]} 115. Kc6 {[%emt 0:00:02]} Be5 {[%emt 0:00:02]} 116. Rd2 {[%emt 0:00:08]} Kf5 {[%emt 0:00:10] Weighted Error Value: White=0.18 (very precise) /Black=0.24 (precise)} 1/2-1/2

[Event "13th KIIT Festival-A 2022"]
[Site "Bhubaneswar"]
[Date "2022.05.26"]
[Round "7.18"]
[White "Mayank Chakraborty"]
[Black "Alekhya Mukhopadhyay"]
[Result "0-1"]
[ECO "B46"]
[WhiteElo "2015"]
[BlackElo "2162"]
[Annotator "TA"]
[PlyCount "62"]
[EventDate "2022.05.15"]
[EventType "swiss"]
[EventCountry "IND"]
[SourceTitle "playchess.com"]
[Source "ChessBase"]
[SourceQuality "1"]
[TimeControl "5400+30"]

{[%evp 18,62,19,14,9,0,29,27,18,25,27,19,14,-215,-189,-210,-215,-196,-216,-190,-202,-294,-277,-568,-555,-586,-585,-560,-570,-578,-545,-605,-605,-601,-556,-761,-757,-894,-899,-1220,-1202,-1935,-1880,-1560,-1635,-1683,-1627]} 1. e4 {[%emt 0:00:01]} c5 {[%emt 0:00:07]} 2. Nf3 {[%emt 0:00:03]} e6 {[%emt 0:00:06]} 3. d4 {[%emt 0:00:04]} cxd4 {[%emt 0:00:05]} 4. Nxd4 {[%emt 0:00:04]} Nc6 {[%emt 0:00:07]} 5. Nc3 {[%emt 0:00:04]} Qc7 {[%emt 0:00:06]} 6. f4 {[%emt 0:00:04]} a6 {[%emt 0:01:32]} 7. Nxc6 {[%emt 0:00:07]} bxc6 {[%emt 0:02:45][%cal Bb7c6,Bc6c5][%mdl 32]} 8. Bd3 {[%emt 0:00:06]} d5 {[%emt 0:00:38]} 9. Qe2 {[%emt 0:00:09]} Nf6 {[%emt 0:01:56]} 10. O-O {[%emt 0:00:54]} Be7 {[%emt 0:01:13] B46: Sicilian: Taimanov: 5 Nc3 a6.} 11. b3 {[%emt 0:00:36]} c5 {[%emt 0:20:21]} 12. exd5 {[%emt 0:07:09]} exd5 {[%emt 0:02:01] White has an edge.} 13. Re1 {[%emt 0:11:08]} Ra7 {[%emt 0:01:55]} 14. Ba3 {[%emt 0:05:43][%cal Oe2e7] next Qxe7+! is good for White.} Qa5 $1 {[%emt 0:06:39] [#]} 15. Nb5 $146 {[%emt 0:10:20]} ({Predecessor:} 15. Bb2 O-O 16. Nxd5 Nxd5 17. Qe4 g6 18. Qxd5 Rd7 19. Qe5 f6 20. Qe6+ Kg7 21. f5 {½-½ (36) Vos,T (2156)-Kim,A (2458) Amsterdam 2016}) 15... axb5 $19 {[%emt 0:13:58]} 16. Bxc5 {[%emt 0:00:09] [#]} Ne4 $1 {[%emt 0:01:36]} 17. Bxb5+ {[%emt 0:09:28] [#]} Kf8 $1 {[%emt 0:10:59]} ({Stronger than} 17... Bd7 18. Bxa7 Qxa7+ 19. Kh1 $17) 18. Bd4 {[%emt 0:08:58]} Nc3 {[%emt 0:14:56]} 19. Qf2 {[%emt 0:09:53]} (19. Qe5 $142 f6 20. Bxc3 (20. Qb8 $2 Ra8 $19) 20... fxe5 21. Bxa5 Rxa5 22. a4) 19... Nxb5 {[%emt 0:03:30][%cal Bc3b5,Bb5a7,Ba7c6][%mdl 32]} 20. Bb6 {[%emt 0:00:04] [#]} (20. Bc5 Bd6 21. Qe3) 20... Qc3 $1 {[%emt 0:01:19] Black is clearly winning.} 21. Bxa7 {[%emt 0:03:46]} Nxa7 {[%emt 0:00:16]} 22. Kh1 {[%emt 0:00:14]} Nc6 {[%emt 0:01:55]} 23. Rad1 {[%emt 0:02:50]} d4 {[%emt 0:02:04]} 24. f5 {[%emt 0:01:41]} h5 {[%emt 0:01:13]} 25. Qf4 {[%emt 0:01:40]} Qa5 {[%emt 0:02:28] Against Qc7} 26. Qe4 {[%emt 0:02:38]} Rh6 {[%emt 0:00:23]} 27. f6 {[%emt 0:05:32]} Rxf6 {[%emt 0:00:42] aiming for ...Re6.} 28. Rf1 {[%emt 0:00:56]} Bf5 {[%emt 0:01:20]} 29. Qe1 {[%emt 0:03:18]} Qxe1 {[%emt 0:00:07]} 30. Rdxe1 {[%emt 0:01:00]} Bxc2 {[%emt 0:00:06]} 31. Rg1 {[%emt 0:01:02]} d3 {[%emt 0:00:03] Black took control after the opening.  Weighted Error Value: White=0.71/Black=0.04 (flawless)} 0-1

[Event "13th KIIT Festival-A 2022"]
[Site "Bhubaneswar"]
[Date "2022.05.26"]
[Round "7.19"]
[White "Ankit Ray"]
[Black "Rohit S"]
[Result "1-0"]
[ECO "D02"]
[WhiteElo "1932"]
[BlackElo "2141"]
[Annotator "TA"]
[PlyCount "89"]
[EventDate "2022.05.15"]
[EventType "swiss"]
[EventCountry "IND"]
[SourceTitle "playchess.com"]
[Source "ChessBase"]
[SourceQuality "1"]
[TimeControl "5400+30"]

{[%evp 9,89,16,14,19,22,29,31,15,35,20,20,14,17,0,0,0,0,0,8,9,25,32,56,59,53,54,84,77,173,125,154,142,145,146,156,150,252,249,209,209,202,189,399,404,395,419,407,399,402,374,440,403,418,436,436,436,431,412,638,623,759,731,743,625,637,637,621,612,608,604,635,628,611,603,567,566,847,804,1082,1023,29983,29984]} 1. d4 {[%emt 0:00:17]} Nf6 {[%emt 0:00:06]} 2. Nf3 {[%emt 0:01:45]} d5 {[%emt 0:00:08]} 3. g3 {[%emt 0:01:48]} c5 {[%emt 0:00:36]} 4. Bg2 {[%emt 0:00:58]} cxd4 {[%emt 0:00:19]} 5. O-O {[%emt 0:01:22]} h6 {[%emt 0:01:06]} 6. b3 {[%emt 0:01:58] D02: 1 d4 d5 2 Nf3 sidelines, including 2...Nf6 3 g3 and 2...Nf6 3 Bf4.} e6 {[%emt 0:02:12]} 7. Bb2 {[%emt 0:00:08]} Bc5 {[%emt 0:00:52]} 8. Nxd4 {[%emt 0:00:29] White is slightly better.} e5 {[%emt 0:00:31]} 9. Nf3 {[%emt 0:00:59]} e4 {[%emt 0:00:05]} 10. Nd4 {[%emt 0:00:06]} O-O {[%emt 0:01:10]} 11. e3 {[%emt 0:00:22] [#]} Nc6 $146 {[%emt 0:00:58]} ({Predecessor:} 11... Bg4 12. Qc1 Nbd7 13. h3 Bh5 14. Ba3 b6 15. c4 Rc8 16. Qc3 dxc4 17. bxc4 Re8 {0-1 (25) Schandorff,L (2480)-Bjerre,J (2529) Denmark 2020}) 12. Nxc6 {[%emt 0:08:36]} bxc6 {[%emt 0:00:28]} 13. c4 {[%emt 0:00:03]} a5 {[%emt 0:09:06][%cal Oa5a4]} 14. Qc2 {[%emt 0:05:16]} Be7 {[%emt 0:03:34]} 15. Nc3 {[%emt 0:00:34]} Ba6 {[%emt 0:05:03]} 16. Rfd1 {[%emt 0:01:18][%cal Rc3e4]} Qc8 {[%emt 0:01:46]} 17. Rac1 {[%emt 0:00:57][%cal Rc4d5]} Qf5 {[%emt 0:07:08]} 18. Ne2 {[%emt 0:04:01] White stays focused until the end.} Ng4 {[%emt 0:04:06]} (18... a4 $16) 19. Nd4 {[%emt 0:02:00]} ({Better is} 19. Nf4 $18) 19... Qh5 {[%emt 0:00:55] [#]} 20. h3 {[%emt 0:00:37]} ({Don't play} 20. Nxc6 Qxh2+ 21. Kf1 Bg5 $16) 20... Ne5 {[%emt 0:00:08] [#]} 21. g4 $1 $36 {[%emt 0:00:22][%mdl 2048] White is in control.} Qg5 {[%emt 0:01:16]} 22. Nf5 {[%emt 0:00:10]} Bf6 {[%emt 0:02:14]} (22... g6 $16 {was necessary.}) 23. Bxe5 $18 {[%emt 0:04:53]} ({Not} 23. cxd5 Bd3 24. Qc5 Nf3+ 25. Bxf3 Bxb2 $16) 23... Bxe5 {[%emt 0:00:12]} 24. cxd5 {[%emt 0:00:46]} Bd3 {[%emt 0:07:59]} 25. Qxc6 {[%emt 0:00:48][%cal Od1d3] Threatens to win with Rxd3!} h5 $2 {[%emt 0:00:14] [#]} (25... g6 {might work better.}) 26. Rxd3 $1 {[%emt 0:03:17]} exd3 {[%emt 0:03:17]} 27. f4 {[%emt 0:00:07]} Bxf4 {[%emt 0:00:10]} 28. exf4 {[%emt 0:00:06]} Qxf4 {[%emt 0:00:07]} 29. Rf1 {[%emt 0:00:08][%cal Bc1f1,Bf1f4,Bf4f5][%mdl 32]} Qg5 {[%emt 0:01:41] Inhibits Ne7+.} 30. Qc3 {[%emt 0:01:10]} d2 {[%emt 0:03:38]} 31. h4 {[%emt 0:01:37]} Qxg4 {[%emt 0:00:40]} 32. Qxd2 {[%emt 0:00:07] aiming for Rf4.} Rae8 {[%emt 0:00:56] White must now prevent ...Re2.} 33. Rf4 {[%emt 0:02:34]} Qg6 {[%emt 0:00:45]} (33... Re1+ $142 34. Kh2 Qe2) 34. d6 {[%emt 0:00:18] Hoping for Ne7+.} Kh8 {[%emt 0:01:06]} 35. Ne7 {[%emt 0:00:32]} Qe6 {[%emt 0:02:30]} 36. Rf5 {[%emt 0:00:23]} Rxe7 {[%emt 0:00:03]} 37. Rxh5+ {[%emt 0:00:13]} Kg8 {[%emt 0:00:05] And now ...Rd7 would win.} 38. dxe7 {[%emt 0:00:04]} Qxe7 {[%emt 0:00:05]} 39. Rxa5 {[%emt 0:00:09]} Qxh4 {[%emt 0:00:17]} 40. Ra8 {[%emt 0:01:06]} Rxa8 {[%emt 0:00:36]} 41. Bxa8 {[%emt 0:00:02]} Qg4+ {[%emt 0:01:28]} 42. Bg2 {[%emt 0:00:03]} f5 {[%emt 0:00:11]} 43. b4 {[%emt 0:00:47][%cal Bb3b4,Bb4b5,Bb5b6][%mdl 32]} f4 {[%emt 0:00:31]} 44. b5 {[%emt 0:00:06] b6 would kill now.} Qh4 {[%emt 0:01:33]} 45. b6 {[%emt 0:00:24] Weighted Error Value: White=0.07 (flawless) /Black=0.53} 1-0